Cogmind - Beta 11.1 *** ADVENTURER MODE // 2022.10.05 @ 21:05:49 Player: yub Result: Destroyed self with Mini Grenade Launcher Performance ------------- Evolutions (0) 0 Regions Visited (1) 200 Robots Destroyed (6) 30 Value Destroyed (91) 91 Prototype IDs (0) 0 Alien Tech Used (0) 0 Bonus (0) 0 TOTAL SCORE: 321 Bonus ------- None Cogmind --------- Core Integrity 0/250 Matter 247/300 Energy 100/100 System Corruption 8% Temperature Cool (0) Movement Walking (120) Location -10/Materials Parts ------- > --- POWER (1) -------- (None) > --- PROPULSION (2) --- Aluminum Leg Aluminum Leg > --- UTILITY (2) ------ Small Storage Unit > --- WEAPON (2) ------- EM Pulse Gun Mini Grenade Launcher > --- INVENTORY (8) ---- Combat Airjet ECM Suite Small Laser Peak State ------------ > --- POWER ------------ (None) > --- PROPULSION ------- Combat Airjet > --- UTILITY ---------- Small Storage Unit > --- WEAPON ----------- EM Pulse Gun Mini Grenade Launcher > --- INVENTORY -------- (None) [Rating: 9] Favorites ----------- Power Light Ion Engine Engine Light Ion Engine Propulsion Light Treads Treads Light Treads Leg Aluminum Leg Wheel Wheel Hover Unit Combat Airjet Utility Small Storage Unit Storage Small Storage Unit Weapon Light Assault Rifle Energy Gun Small Laser Ballistic Gun Light Assault Rifle Launcher Mini Grenade Launcher Build | -11 -10 ------- Run | Scr Mat Slots Evolved . | . . Power . | . . Propulsion . | . . Utility . | . . Weapon . | . . Parts Attached 13 | 13 . Power 2 | 2 . Engine 2 | 2 . Core . | . . Reactor . | . . Propulsion 6 | 6 . Treads 2 | 2 . Leg 2 | 2 . Wheel 1 | 1 . Hover 1 | 1 . Flight . | . . Utility 1 | 1 . Device . | . . Storage 1 | 1 . Processor . | . . Hackware . | . . Protection . | . . Artifact . | . . Weapon 4 | 4 . Energy Gun 2 | 2 . Energy Cannon . | . . Ballistic Gun 1 | 1 . Ballistic Cannon . | . . Launcher 1 | 1 . Special Weapon . | . . Impact Weapon . | . . Slashing Weapon . | . . Piercing Weapon . | . . Special Melee Weapon . | . . Unidentified Prototypes . | . . Parts Lost 7 | 7 . Power 2 | 2 . Propulsion 3 | 3 . Utility . | . . Weapon 2 | 2 . Highest Loss Streak 7 | 7 . To Critical Strikes . | . . Average Slot Usage (%) 71 | . 71 Leg 28 | . 28 Storage 14 | . 14 Energy Gun 14 | . 14 Launcher 14 | . 14 Naked Turns . | . . Heaviest Build 11 | 11 8 Greatest Support 40 | 40 20 Greatest Overweight (x) 3 | 3 . Average Overweight (x) . | . . Largest Inventory Capacity 8 | 8 8 Average Capacity 7 | 7 8 Most Carried 6 | 6 3 Average Carried 1 | 1 2 Final Capacity 8 | 8 8 Final Carried 3 | 1 3 Class Distribution -------------------- 100% | Mutant Dominant Class ---------------- Mutant | -10/Materials Resources | -11 -10 ----------- Run | Scr Mat Matter Collected 422 | 394 28 Remotely . | . . Salvage Created 101 | 56 45 Parts 7 | 2 5 Haulers Intercepted . | . . Recyclers Shooed . | . . Parts Field Recycled . | . . Retrieved Matter . | . . Parts Self-Destructed . | . . Prevented . | . . Kills | -11 -10 ------- Run | Scr Mat Combat Hostiles Destroyed 6 | 3 3 Melee 1 | 1 . Guns 3 | 2 1 AOE 2 | . 2 Classes Destroyed 5 | 3 2 Worker 1 | . 1 Tunneler 1 | 1 . Swarmer 3 | . 3 Demolisher 1 | 1 . Assembled 2 | 2 . Best Kill Streak 3 | 2 3 Combat Bots Only 3 | 2 3 Max Kills in Single Turn 2 | 1 2 Gunslinging . | . . Exploded 2 | . 2 Melee 1 | 1 . Uniques/NPCs Destroyed . | . . Combat | -11 -10 -------- Run | Scr Mat Damage Taken 994 | 938 56 Core 253 | 228 25 Absorbed by Shields . | . . Core Remaining (%) 8 | 8 . Volleys Fired 21 | 15 6 Largest 2 | 2 2 Hottest 70 | 60 70 Shots Fired 32 | 24 8 Gun 24 | 18 6 Cannon . | . . Launcher 8 | 6 2 Special . | . . Kinetic 7 | 7 . Thermal 7 | 7 . Explosive 8 | 6 2 Electromagnetic 10 | 4 6 Robot Hit Streak 12 | 12 7 Robot Miss Streak 3 | 2 3 Penetration Max . | . . Secondary Targets 1 | 1 . Max Gunslinging Chain 1 | 1 . Shots Hit Robots 21 | 14 7 Core Hits 14 | 9 5 Critical Kills . | . . Critical Parts Destroyed . | . . Critical Strikes 1 | 1 . Corrupt 1 | 1 . Melee Attacks . | . . Impact . | . . Slashing . | . . Piercing . | . . Sneak Attacks . | . . Combat Hostiles . | . . Follow-up Attacks . | . . Damage Inflicted 509 | 201 308 Guns 229 | 154 75 Cannons . | . . Explosions 274 | 41 233 Melee . | . . Ramming 6 | 6 . Kinetic 52 | 52 . Thermal 93 | 68 25 Explosive 249 | 41 208 Electromagnetic 109 | 34 75 Impact . | . . Slashing . | . . Piercing . | . . Highest Corruption 8 | 8 8 Average Corruption 7 | 7 8 Corruption Purged . | . . Corruption Blocked . | . . Effects 48 | 46 2 Message Errors 9 | 9 . Matter Fused 12 | 12 . Heat Flow Errors 6 | 5 1 Energy Discharges 5 | 5 . Data Loss (minor) 9 | 9 . Data Loss (major) 2 | 2 . Misfires 3 | 2 1 Alerts 2 | 2 . Overload Shots . | . . Overflow Damage . | . . Projectiles . | . . Explosions . | . . Melee . | . . Knockbacks . | . . Impact . | . . Kinetic . | . . Secondary . | . . Self-Inflicted Damage 72 | 32 40 Shots 4 | 2 2 Rammed 1 | 1 . Targets Rammed 2 | 2 . Kicked . | . . Crushed 1 | 1 . Highest Temperature 272 | 272 172 Average Temperature 79 | 80 72 Received Heat Transfer . | . . Siege Activations . | . . Robots Corrupted . | . . Combat Hostiles . | . . Parts Fried . | . . Impact Corruptions . | . . Robots Melted . | . . Combat Hostiles . | . . Parts Melted . | . . Heat Transferred 200 | 150 50 Parts Sabotaged . | . . Parts Stolen . | . . Parts Stripped . | . . Power Chain Reactions 1 | . 1 Missiles Intercepted . | . . Alert | -11 -10 ------- Run | Scr Mat Peak Influence 112 | 20 112 Initial . | . . Average 1 | . 75 Maximum Alert Level . | . . Low Security (%) 100 | 100 100 Level 1 . | . . Level 2 . | . . Level 3 . | . . Level 4 . | . . Level 5 . | . . High Security . | . . Max Security . | . . Squads Dispatched . | . . Investigation . | . . Extermination . | . . Reinforcement . | . . Assault . | . . Garrison . | . . Intercept . | . . Searches Triggered . | . . Construction Impeded . | . . Haulers Reinforced . | . . Active Scanning Responses . | . . Cargo Convoy Interrupts . | . . Stealth | -11 -10 --------- Run | Scr Mat Distress Signals . | . . Communications Jammed . | . . Distress Signals . | . . Times Spotted 23 | 20 3 Peak Tracking Total 20 | 20 3 Tactical Retreats . | . . Traps | -11 -10 ------- Run | Scr Mat Traps Triggered . | . . Indirectly . | . . Trap Hack Attempts . | . . Triggered . | . . Disarmed . | . . Reprogrammed . | . . Reused . | . . Traps Extracted . | . . Installed . | . . Triggered . | . . Machines | -11 -10 ---------- Run | Scr Mat Machines Disabled . | . . Max in Single Turn . | . . Machines Sabotaged . | . . Garrisons Compromised . | . . Overloaded Fab Kills . | . . Hacking | -11 -10 --------- Run | Scr Mat Machines Accessed 1 | . 1 Terminals . | . . Fabricators . | . . Repair Stations . | . . Recycling Units 1 | . 1 Scanalyzers . | . . Garrison Access . | . . Total Hacks 1 | . 1 Successful 1 | . 1 Failed . | . . Catastrophic . | . . Database Lockouts . | . . Manual . | . . Terminals . | . . Fabricators . | . . Repair Stations . | . . Recycling Units 1 | . 1 Scanalyzers . | . . Garrison Access . | . . Terminal Hacks . | . . Fabricator Hacks . | . . Repair Station Hacks . | . . Recycling Unit Hacks 1 | . 1 Retrieve Components 1 | . 1 Scanalyzer . | . . Garrison Access Hacks . | . . Unauthorized Hacks . | . . Terminals . | . . Fabricators . | . . Repair Stations . | . . Recycling Units . | . . Scanalyzers . | . . Garrison Access . | . . Data Cores Recovered . | . . Used . | . . Hacking Detections . | . . Full Trace Events . | . . Feedback Events . | . . Feedback Blocked . | . . Robot Schematics Acquired . | . . Robots Built . | . . Authchips . | . . Time . | . . Total Robot Build Rating . | . . Part Schematics Acquired . | . . Parts Built . | . . Authchips . | . . Time . | . . Total Part Build Rating . | . . Parts Repaired . | . . Time . | . . Parts Recycled . | . . Recycled Matter . | . . Retrieved Matter . | . . Retrieved Components 3 | . 3 Parts Scanalyzed . | . . Part Schematics Acquired . | . . Parts Damaged . | . . Bothacking | -11 -10 ------------ Run | Scr Mat Used RIF Installer . | . . Robots Hacked . | . . Non-combat . | . . Combat . | . . Robot Hacks Applied . | . . Relay Couplers Released . | . . Fabnet Peak Effective % . | . . Robots Rewired . | . . Allies Hacked . | . . Hacks Repelled . | . . Allies | -11 -10 -------- Run | Scr Mat Total Allies . | . . Largest Group . | . . Highest-Rated Group . | . . Highest-Rated Ally . | . . Total Orders . | . . Ally Attacks . | . . Total Damage . | . . Kills . | . . Allies Corrupted . | . . Allies Melted . | . . Intel | -11 -10 ------- Run | Scr Mat Robot Analysis Total . | . . Derelict Logs Recovered . | . . Drone Launches . | . . Drone Recoveries . | . . Exploration | -11 -10 ------------- Run | Scr Mat Turns Passed 3847 | 3783 64 Spaces Moved 1158 | 1117 41 Core 24 | 24 . Treads 462 | 462 . Legs 522 | 481 41 Wheels . | . . Hover 150 | 150 . Flight . | . . Fastest Speed 50 | 50 120 Average Speed 131 | 131 120 Slowest Speed 200 | 200 120 Overloaded Moves . | . . Propulsion Burnouts . | . . Robots Hopped . | . . Cave-ins Triggered . | . . Exploration Rate (%) 48 | 79 17 Regions Visited 1 Branch Regions . Pre-discovered Areas . | . . Known Exits Taken . | . . Unknown Exits Taken 1 | 1 . Scrap Searched . | . . Spaces Dug 25 | 25 . Terrain Destroyed 87 | 72 15 Melee . | . . Projectile . | . . AOE 87 | 72 15 Terrain Rammed . | . . Walls Destroyed . | . . Machines Disabled . | . . Actions | -11 -10 --------- Run | Scr Mat Total 3457 | 3408 49 Wait 2248 | 2248 . Move 1157 | 1116 41 Hop . | . . Pick Up 15 | 13 2 Fast Attach . | . . Attach 13 | 13 . Detach 1 | 1 . Swap . | . . Drop . | . . Fire 21 | 15 6 Melee . | . . Ram . | . . Kick . | . . Crush 2 | 2 . Escape Stasis . | . . Rewire . | . . Trap . | . . Miscellaneous . | . . Route ------- -11/Scrapyard -10/Materials History --------- Turn | Location | Event 17 | -11/Scrapyard | Discovered new exit (range 15) 2255 | -11/Scrapyard | Assembled infested the area 2298 | -11/Scrapyard | Core integrity fell below 50% 2314 | -11/Scrapyard | Core integrity fell below 20% 2346 | -11/Scrapyard | Lost 7 parts (2p3n2w) 3784 | -11/Scrapyard | Entered Materials 3785 | -10/Materials | Build established: Mutant 3848 | -10/Materials | Destroyed self with Mini Grenade Launcher Last Messages --------------- 03832_ U-05 Engineer lays Concrete. 03836_ The unstable cave ceiling collapses. 03836_ U-05 Engineer builds a Wall. 03837_ U-05 Engineer lays Concrete. 03838_ Connecting with Recycling Unit... 03838_ Current location identified: Materials >>Retrieve(Components) Retrieving 3 components... ECM Suite Mining Laser Lgt. Cannon 03839_ U-05 Engineer lays Concrete. 03839_ Acquired ECM Suite. 03840_ U-05 Engineer lays Concrete. 03843_ U-05 Engineer builds a Wall. 03843_ U-05 Engineer lays Concrete. 03845_ K-01 Serf collects debris. 03848_ System corrupted: FCS attempts to trigger Mni. Grenade Launcher. 03848_ System corrupted: Mni. Grenade Launcher misfires. 03848_ K-01 Serf destroyed. Map ----- +----------------------------------------------------+ | ???????????????????????????????????????????????? | | ???????????????????????????????????????????????? | | ???????????????????????????????????????????????? | | ???????????????????????????????????????????????? | | ???????????????????????????????????????????????? | | ???????????????????????????????????????????????? | | ???????????????????????????????????????????????? | | ??????????????????????????????????????? ??????? | | ?????????????????????????????????????? ??????? | | ?????????????????????????????????????? #??#???? | | ?????????????????????????????????????? #? ????? | | ?????????????????????????????????????? +? ????? | | ????????????????????????????????????? # ?????? | | ????????????????????????????????????? # ?????? | | ????????????????????????????????????? +??????? | | ????????????????????????????????????? #??????? | | ?????????????#####+?????????????????? #??????? | | ?????????????# ????????????????? #??????? | | ?????????????# ????????######?## #??????? | | ?????????????? ???????# #### #??????? | | ???????????????? ???????# ## ###????? | | ????????????????? ??????# #????? | | ?????????????????## #?#+#?# = #????? | | ?????????????????# = ## ###| #????? | | ?????????????????# # "" # ####????? | | ?????????????????# @ +]Y" ##???????? | | ?????????????????# # "" ##????????? | | ?????????????????# ###### # #????????#? | | ?????????????????## #?????###### #?????? #? | | ??????????????????# ???????????# #???? #? | | ??????????????????# ????????????# #?? #? | | ??????????????????# ????######### # #? | | ??????????????????# ?????# + + #? | | ?????????????????? ?????# # # #? | | ????????????????? ??????# # # #? | | ????????????????? ??????# # #? #? | | ????????????????##???????# ![ # #?? #? | | ?????????????????????????# [ + #???######? | | ?????????????????????????# [ # #?????????? | | ?????????????????????????# # #?????????? | | ?????????????????????????# # #?????????? | | ?????????????????????????# # #?????????? | | ?????????????????????????# + #?????????? | | ?????????????????????????######### #?????????? | | ?????????????????????????????????# #?????????? | | ?????????????????????????????????# #?????????? | | ?????????????????????????????????#####?????????? | | ???????????????????????????????????????????????? | | ???????????????????????????????????????????????? | | ???????????????????????????????????????????????? | +----------------------------------------------------+ Best States ------------- Heat Dissipation 25 Energy Generation 10 Energy Capacity 250 Matter Stores 300 Matter Capacity 300 Sight Range 16 Terrain Scan Density 10 Resistance: KI 20 Resistance: TH 20 Resistance: EX 20 Resistance: EM 20 Resistance: I 20 Resistance: S 20 Resistance: P 20 Evasion (%) 55 Recoil Reduction 2 Offensive Hacking 10 Item Schematics ----------------- None Robot Schematics ------------------ None Fabricated ------------ Nothing Alien Tech Used ----------------- None Achievements -------------- None Challenges ------------ None Game ------ Seed StormShadingCloak Manual? 0 Play Time 00:09:57 Cumulative 45.8 hours Start 2022.10.05 @ 20:56:37 End 2022.10.05 @ 21:05:49 Sessions 1 Manual Loads 0 Difficulty Adventurer Special Mode None Game No. 56 Rogue 17 Adventurer 39 Explorer 0 Win Type - Total 0 Types 0/0/0/0/0/0/0/0/0 Lore% 25 Gallery% 44 Achievement% 37 Wizard Run 0 Options --------- ASCII 0 Keyboard 0 Movement Mouse Keybinds 0 Fullscreen 1 Font 24/Proggy Map View 76x50 Tactical HUD 1 Map Filters NONE Filters NONE Steam 1 RUN: 4ff02ea5-910d-419a-b30d-85126f914995